bitfinex/quotes_SOLUSD_20250401
["timestamp","ask_amount","ask_price","bid_price","bid_amount"]
[1743489611020,11.71140009,126.53,126.52,18.933972]
[1743489612029,4.3751824,126.6,126.52,38.933972]
[1743489612324,4.3751824,126.6,126.58,0.14216157]
[1743489612495,11.71140009,126.59,126.58,0.14216157]
[1743489612912,11.71140009,126.59,126.54,18.933972]
[1743489613096,11.71140009,126.57,126.54,38.933972]
[1743489613297,11.71140009,126.55,126.54,38.933972]
[1743489613809,11.71140009,126.56,126.54,38.933972]
[1743489614020,2.8403824,126.6,126.57,18.933972]
[1743489614193,11.71140009,126.58,126.57,18.933972]
[1743489614395,11.71140009,126.58,126.56,0.14216157]
[1743489614593,11.71140009,126.57,126.55,18.79181043]
[1743489614816,11.71140009,126.56,126.55,18.933972]
[1743489614999,0.03,126.57,126.56,20.28432314]
[1743489615813,0.03,126.57,126.56,28.18562314]
[1743489616016,0.03,126.57,126.56,38.933972]
[1743489616215,0.03,126.57,126.56,46.835272]
[1743489616511,11.74140009,126.57,126.56,38.933972]
[1743489616717,11.74140009,126.57,126.56,18.933972]
[1743489618096,0.03,126.57,126.56,18.933972]
[1743489618320,0.03,126.57,126.56,38.933972]
[1743489618513,11.74140009,126.57,126.56,38.933972]
[1743489618903,11.74140009,126.57,126.56,18.933972]
[1743489620021,11.74140009,126.57,126.56,0.14216157]
[1743489621709,0.03,126.57,126.56,0.14216157]
[1743489621920,11.74140009,126.57,126.56,0.14216157]
[1743489622597,19.64220009,126.57,126.52,18.79181043]
[1743489622817,11.71140009,126.53,126.52,18.933972]
[1743489623218,11.71140009,126.53,126.51,47.06233806]
[1743489623402,11.71140009,126.52,126.51,47.20449963]
[1743489623719,11.71140009,126.52,126.51,0.14216157]
[1743489623896,11.71140009,126.52,126.49,20.0]
[1743489624218,7.9038,126.53,126.5,0.14216157]
[1743489625309,11.71140009,126.51,126.5,0.14216157]
[1743489625546,11.71140009,126.51,126.5,18.933972]
[1743489625820,11.71140009,126.51,126.5,0.14216157]
[1743489627012,11.71140009,126.51,126.5,0.20516157]
[1743489627410,19.61590009,126.51,126.5,0.20516157]
[1743489627612,11.71140009,126.51,126.5,0.20516157]
[1743489632032,11.71140009,126.52,126.5,0.20516157]
[1743489632240,11.71140009,126.51,126.5,0.20516157]
[1743489632536,11.71140009,126.51,126.5,18.996972]
[1743489633052,7.9029,126.54,126.5,18.996972]
[1743489633229,11.71140009,126.52,126.5,18.996972]
[1743489633836,11.71140009,126.52,126.5,26.901972]
[1743489635238,11.71140009,126.51,126.5,18.996972]
[1743489635610,11.71140009,126.52,126.5,18.996972]
[1743489636010,7.902,126.55,126.5,18.996972]
[1743489636432,11.71140009,126.52,126.5,18.996972]
[1743489636621,11.71140009,126.51,126.5,18.996972]
[1743489638445,11.71140009,126.51,126.5,26.902072]
[1743489638647,11.71140009,126.52,126.5,26.902072]
[1743489640034,11.71140009,126.52,126.51,20.14216157]
[1743489640230,0.03,126.56,126.53,0.14216157]
[1743489640560,11.71140009,126.54,126.53,0.14216157]
[1743489642239,0.03,126.56,126.55,20.14216157]
[1743489643644,0.03,126.56,126.55,38.933972]
[1743489643825,0.03,126.56,126.55,46.835972]
[1743489646024,0.03,126.56,126.55,53.324172]
[1743489646352,0.03,126.57,126.56,18.933972]
[1743489646517,0.03,126.57,126.56,20.575172]
[1743489647244,0.0001,126.57,126.56,20.575172]
[1743489648060,0.0001,126.57,126.56,28.476472]
[1743489650648,0.0001,126.57,126.56,39.736472]
[1743489650841,0.0001,126.57,126.56,18.933972]
[1743489651043,0.0001,126.57,126.56,26.835272]
[1743489651652,0.0001,126.57,126.56,26.898272]
[1743489652953,0.0001,126.57,126.56,18.996972]
[1743489653955,0.0001,126.57,126.56,26.898272]
[1743489654761,0.0001,126.57,126.56,18.996972]
[1743489655349,0.0001,126.57,126.56,26.898272]
[1743489656148,0.0001,126.57,126.56,18.996972]
[1743489656465,0.0001,126.57,126.56,26.898272]
[1743489662981,2.8403824,126.6,126.56,26.898272]
[1743489663158,2.8403824,126.6,126.59,38.933972]
[1743489664186,2.8403824,126.6,126.59,46.833472]
[1743489674996,2.8403824,126.6,126.59,38.933972]
[1743489675567,14.55178249,126.6,126.59,18.933972]
[1743489676059,2.8403824,126.6,126.59,18.933972]
[1743489676260,14.55178249,126.6,126.59,18.933972]
[1743489676485,14.58178249,126.6,126.59,18.933972]
[1743489677477,14.58178249,126.6,126.59,38.933972]
[1743489678387,14.58178249,126.6,126.59,18.933972]
[1743489680894,14.58178249,126.6,126.59,0.14216157]
[1743489681285,0.0001,126.66,126.65,26.6537]
[1743489681486,0.03,126.69,126.68,58.933972]
[1743489681678,12.40219754,126.76,126.72,0.28432314]
[1743489681987,12.40219754,126.76,126.72,18.933972]
[1743489682566,12.40219754,126.76,126.74,20.0]
[1743489682772,12.40219754,126.76,126.75,0.28432314]
[1743489685090,11.66513952,126.79,126.75,0.28432314]
[1743489685991,11.66513952,126.79,126.75,8.17372314]
[1743489686291,11.66513952,126.79,126.77,12.36909199]
[1743489686681,7.8846,126.83,126.78,0.14216157]
[1743489686682,11.66513952,126.82,126.78,0.14216157]
[1743489686878,11.66513952,126.82,126.78,0.28432314]
[1743489687597,11.66513952,126.81,126.8,12.36909199]
[1743489687892,11.66513952,126.81,126.79,12.36909199]
[1743489688487,11.66513952,126.81,126.78,62.12978309]
[1743489688890,0.03,126.79,126.78,62.12978309]
[1743489689096,0.03,126.79,126.78,49.7606911]
[1743489690197,0.03,126.79,126.78,49.47636796]
[1743489690378,11.69513952,126.79,126.78,49.61852953]
[1743489690889,11.69513952,126.79,126.78,49.47636796]
[1743489691284,0.03,126.79,126.78,49.47636796]
[1743489691486,11.69513952,126.79,126.78,49.47636796]
[1743489692083,0.03,126.79,126.76,0.14216157]
[1743489692395,11.66513952,126.78,126.76,0.14216157]
[1743489694084,11.66513952,126.77,126.75,0.14216157]
[1743489694394,7.917,126.79,126.75,0.14216157]
[1743489694395,11.66513952,126.76,126.75,0.14216157]
[1743489694993,11.66513952,126.76,126.72,0.28432314]
[1743489695192,11.66513952,126.73,126.72,0.14216157]
[1743489695400,11.66513952,126.74,126.72,0.14216157]
[1743489695622,12.16513952,126.78,126.72,0.14216157]
[1743489695623,11.66513952,126.75,126.73,0.14216157]
[1743489696500,11.66513952,126.75,126.73,8.03286157]
[1743489698603,11.66513952,126.76,126.73,8.03286157]
[1743489699714,11.66513952,126.75,126.73,0.14216157]
[1743489699918,11.66513952,126.74,126.71,18.933972]
[1743489700121,13.18153952,126.78,126.71,18.933972]
[1743489700122,11.66513952,126.73,126.71,18.933972]
[1743489700423,11.66513952,126.73,126.71,12.51125356]
[1743489700825,11.66513952,126.72,126.71,12.51125356]
[1743489701117,11.66513952,126.73,126.71,12.51125356]
[1743489701417,11.66513952,126.72,126.71,12.36909199]
[1743489701799,11.66513952,126.72,126.67,0.14216157]
[1743489702002,11.66513952,126.7,126.67,0.28432314]
[1743489702417,11.66513952,126.7,126.67,26.828272]
[1743489702621,11.66513952,126.71,126.69,0.14216157]
[1743489703131,19.7246,126.75,126.69,0.14216157]
[1743489703505,11.66513952,126.71,126.69,0.14216157]
[1743489704936,11.66513952,126.7,126.66,27.8948]
[1743489705241,11.66513952,126.69,126.66,0.14216157]
[1743489705719,11.66513952,126.68,126.66,0.14216157]
[1743489706124,11.66513952,126.69,126.67,20.14216157]
[1743489706327,11.66513952,126.7,126.67,20.14216157]
[1743489707006,11.66513952,126.7,126.67,0.14216157]
[1743489707321,11.66513952,126.69,126.67,0.14216157]
[1743489711721,11.66513952,126.71,126.68,0.14216157]
[1743489711907,7.8913,126.73,126.68,0.14216157]
[1743489712105,11.66513952,126.72,126.68,0.14216157]
[1743489713132,11.66513952,126.71,126.68,0.14216157]
[1743489713913,7.8901,126.74,126.68,0.14216157]
[1743489714116,11.66513952,126.71,126.68,0.14216157]
[1743489714832,11.66513952,126.7,126.68,0.14216157]
[1743489715027,11.66513952,126.71,126.68,0.14216157]
[1743489715417,19.55753952,126.71,126.68,0.14216157]
[1743489716329,11.66513952,126.71,126.68,0.14216157]
[1743489717046,7.8901,126.74,126.68,8.03596157]
[1743489717340,11.66513952,126.73,126.68,8.03596157]
[1743489717511,11.66513952,126.72,126.68,8.03596157]
[1743489718634,11.66513952,126.71,126.68,8.03596157]
[1743489720739,7.8908,126.73,126.68,8.03596157]
[1743489720942,11.66513952,126.72,126.68,8.03596157]
[1743489722037,11.66513952,126.71,126.68,8.03596157]
[1743489722826,7.8905,126.74,126.68,8.03596157]
[1743489723030,7.8905,126.74,126.67,0.063]
[1743489723031,11.66513952,126.69,126.67,0.063]
[1743489723219,11.66513952,126.7,126.67,0.20516157]
[1743489723414,81.7,126.73,126.67,0.34732314]
[1743489723629,11.66513952,126.72,126.67,0.34732314]
[1743489723937,81.7,126.73,126.67,0.34732314]
[1743489724338,11.66513952,126.71,126.67,0.34732314]
[1743489724529,11.66513952,126.68,126.67,0.063]
[1743489727127,11.66513952,126.68,126.67,5.89549282]
[1743489728239,19.55903952,126.68,126.67,5.89549282]
[1743489728559,11.66513952,126.69,126.67,5.89549282]
[1743489728852,11.66513952,126.69,126.67,0.063]
[1743489729950,19.55853952,126.69,126.67,0.063]
[1743489730158,11.66513952,126.68,126.67,0.063]
[1743489730446,11.66513952,126.69,126.67,0.063]
[1743489730951,11.66513952,126.68,126.67,0.063]
[1743489731452,19.55903952,126.68,126.67,0.063]
[1743489735639,11.66513952,126.68,126.67,0.063]
[1743489736446,19.55903952,126.68,126.67,0.063]
[1743489737342,11.66513952,126.68,126.67,0.063]
[1743489739645,7.47817589,126.68,126.67,0.063]
[1743489740760,15.37207589,126.68,126.67,0.063]
[1743489741365,7.47817589,126.68,126.67,0.063]
[1743489742154,15.37207589,126.68,126.67,0.063]
[1743489744136,7.8926,126.7,126.67,0.063]
[1743489744464,7.47817589,126.68,126.67,0.063]
[1743489745464,29.91270356,126.72,126.67,0.20516157]
[1743489745640,7.47817589,126.7,126.67,0.20516157]
[1743489745841,7.47817589,126.69,126.67,0.20516157]
[1743489746150,7.47817589,126.68,126.67,0.063]
[1743489747665,15.37207589,126.68,126.67,0.063]
[1743489748554,15.37207589,126.68,126.67,5.91638711]
[1743489749875,19.58242432,126.68,126.67,5.91638711]
[1743489750057,19.58242432,126.68,126.67,0.063]
[1743489750746,11.68852432,126.68,126.67,0.063]
[1743489751171,101.28242432,126.68,126.67,0.063]
[1743489751542,93.38852432,126.68,126.67,0.063]
[1743489751769,101.28242432,126.68,126.67,0.063]
[1743489755673,112.97094864,126.68,126.67,0.063]
[1743489755856,134.23144864,126.68,126.6,1.72006157]
[1743489756059,11.68852432,126.63,126.6,1.72006157]
[1743489756580,11.68852432,126.63,126.61,5.85534109]
[1743489758184,11.68852432,126.63,126.61,13.75344109]
[1743489758382,11.68852432,126.63,126.62,5.85534109]
[1743489760085,11.68852432,126.64,126.62,5.85534109]
[1743489761792,11.68852432,126.64,126.63,5.99750266]
[1743489767095,11.68852432,126.64,126.63,0.14216157]
[1743489767297,11.68852432,126.64,126.62,0.20516157]
[1743489767599,19.58512432,126.64,126.62,0.063]
[1743489768497,11.68852432,126.63,126.62,0.063]
[1743489769595,19.58552432,126.63,126.62,0.063]
[1743489771703,15.38364844,126.63,126.62,0.063]
[1743489774297,15.38364844,126.63,126.56,27.9996]
[1743489774490,7.48664844,126.58,126.57,0.14216157]
[1743489775278,27.6395,126.63,126.57,0.14216157]
[1743489775279,7.48664844,126.59,126.57,0.14216157]
[1743489775733,7.48664844,126.59,126.57,6.00408347]
[1743489777196,15.38614844,126.59,126.57,0.14216157]
[1743489777393,15.38614844,126.59,126.56,0.063]
[1743489777591,7.48664844,126.58,126.56,0.063]
[1743489778881,7.48664844,126.57,126.56,0.063]
[1743489780596,7.48664844,126.57,126.56,5.91445205]
[1743489780981,7.48664844,126.57,126.56,6.05661362]
[1743489781477,7.48664844,126.58,126.56,6.05661362]
[1743489781680,7.48664844,126.58,126.57,0.14216157]
[1743489782797,7.48664844,126.58,126.56,0.063]
[1743489783006,7.48664844,126.57,126.56,0.063]
[1743489783386,7.9002,126.58,126.56,0.20516157]
[1743489783701,15.38684844,126.58,126.56,0.20516157]
[1743489784398,7.48664844,126.57,126.56,0.20516157]
[1743489784603,7.9002,126.58,126.56,0.20516157]
[1743489784604,7.48664844,126.58,126.56,0.20516157]
[1743489785498,7.48664844,126.59,126.56,0.20516157]
[1743489785709,7.48664844,126.59,126.57,0.14216157]
[1743489785898,7.8991,126.6,126.57,0.14216157]
[1743489786091,7.48664844,126.59,126.57,0.14216157]
[1743489787505,15.38624844,126.59,126.56,0.063]
[1743489787713,7.48664844,126.58,126.56,0.063]
[1743489788910,15.38674844,126.58,126.56,0.063]
[1743489789301,7.48664844,126.57,126.56,0.063]
[1743489791015,15.38734844,126.57,126.56,0.063]
[1743489801914,7.48664844,126.57,126.56,0.063]
[1743489802120,15.38734844,126.57,126.56,0.063]
[1743489804027,7.48664844,126.57,126.56,0.063]
[1743489804719,15.38734844,126.57,126.56,0.063]
[1743489823325,15.38734844,126.57,126.56,0.0001]
[1743489823532,35.13924844,126.57,126.54,0.063]
[1743489823719,7.48664844,126.55,126.54,0.063]
[1743489825340,15.38864844,126.55,126.54,0.063]
[1743489827616,7.902,126.55,126.54,0.063]
[1743489827815,15.38864844,126.55,126.54,0.063]
[1743489831420,45.3352422,126.55,126.54,0.063]
[1743489831820,15.38864844,126.55,126.54,0.063]
[1743489833429,65.0902422,126.55,126.5,0.063]
[1743489833629,7.48664844,126.51,126.5,0.063]
[1743489834444,15.39114844,126.51,126.5,0.063]
[1743489843350,7.9032,126.53,126.5,0.063]
[1743489843552,7.48664844,126.51,126.5,0.063]
[1743489844949,15.38984844,126.53,126.5,0.063]
[1743489845157,7.48664844,126.53,126.5,0.063]
[1743489850453,7.51664844,126.54,126.51,0.14216157]
[1743489851364,7.51664844,126.54,126.52,0.14216157]
[1743489852959,15.41924844,126.54,126.52,0.14216157]
[1743489853455,7.9326,126.54,126.52,0.14216157]
[1743489853655,15.41924844,126.54,126.52,0.14216157]
[1743489854164,7.51664844,126.54,126.52,0.14216157]
[1743489856458,7.48664844,126.53,126.52,0.14216157]
[1743489859962,0.03,126.54,126.52,0.14216157]
[1743489860950,0.03,126.54,126.52,8.04576157]
[1743489866873,0.03,126.54,126.53,8.04536157]
[1743489868970,0.03,126.54,126.53,0.14216157]
[1743489869469,0.03,126.54,126.53,8.04536157]
[1743489870752,0.03,126.54,126.53,0.14216157]
[1743489871147,7.51664844,126.54,126.53,0.14216157]
[1743489871545,7.51664844,126.54,126.52,0.20516157]
[1743489871749,7.48664844,126.53,126.52,0.20516157]
[1743489874678,7.51664844,126.54,126.52,0.20516157]
[1743489874862,0.03,126.54,126.52,0.20516157]
[1743489875183,0.03,126.54,126.53,0.14216157]
[1743489878773,0.03,126.54,126.53,8.04536157]
[1743489879175,0.03,126.54,126.53,8.18752314]
[1743489881977,0.03,126.54,126.53,0.28432314]
[1743489885393,0.03,126.54,126.53,26.837172]
[1743489887289,0.03,126.54,126.53,18.933972]
[1743489888990,0.03,126.54,126.53,26.837172]
[1743489891087,0.03,126.56,126.55,38.933972]
[1743489891395,0.03,126.56,126.55,46.493972]
[1743489893170,0.03,126.56,126.55,54.395972]
[1743489900708,0.0001,126.56,126.55,54.395972]
[1743489900897,0.03,126.62,126.61,0.28432314]
[1743489901205,0.03,126.62,126.61,26.473972]
[1743489902311,0.03,126.62,126.61,34.372172]
[1743489904583,0.03,126.67,126.65,18.933972]
[1743489906089,7.48664844,126.66,126.65,0.28432314]
[1743489906291,7.51664844,126.67,126.65,0.28432314]
[1743489906698,7.51664844,126.67,126.65,26.829572]
[1743489906699,0.03,126.67,126.65,26.829572]
[1743489909114,0.03,126.67,126.66,27.84432314]
[1743489910612,0.03,126.67,126.66,35.73942314]
[1743489914625,0.03,126.67,126.66,54.389072]
[1743489916228,0.03,126.67,126.66,27.84432314]
[1743489916427,0.03,126.67,126.66,35.73942314]
[1743489917221,0.03,126.67,126.66,27.84432314]
[1743489918136,0.03,126.67,126.66,35.73942314]
[1743489925617,0.03,126.67,126.66,54.389072]
[1743489937178,7.51664844,126.67,126.66,20.28432314]
[1743489937382,0.03,126.67,126.66,20.28432314]
[1743489938964,0.03,126.67,126.66,28.17942314]
[1743489939357,0.03,126.67,126.66,20.28432314]
[1743489943490,0.03,126.67,126.66,28.17942314]
[1743489946293,0.03,126.67,126.66,20.28432314]
[1743489946464,0.03,126.67,126.66,38.933972]
[1743489948596,0.03,126.67,126.66,46.829072]
[1743489959179,0.03,126.67,126.66,38.933972]
[1743489960122,7.51664844,126.67,126.64,0.28432314]
[1743489960283,7.48664844,126.65,126.64,0.14216157]
[1743489961503,7.48664844,126.66,126.64,0.14216157]
[1743489961807,0.03,126.67,126.65,0.14216157]
[1743489963189,0.03,126.67,126.66,0.14216157]
[1743489966400,7.51664844,126.67,126.65,0.14216157]
[1743489966591,7.51664844,126.67,126.64,0.14216157]
[1743489966792,7.48664844,126.66,126.64,0.14216157]
[1743489967505,7.48664844,126.65,126.64,0.14216157]
[1743489968409,15.38254844,126.65,126.62,0.063]
[1743489968594,7.48664844,126.64,126.62,0.34732314]
[1743489969230,7.48664844,126.63,126.62,0.20516157]
[1743489969388,7.48664844,126.63,126.62,0.063]
[1743489970097,15.38364844,126.63,126.62,0.063]
[1743489972393,8.0913,126.62,126.61,12.31105199]
[1743489972593,15.57794844,126.62,126.61,12.31105199]
[1743489972901,15.57794844,126.62,126.6,24.62210399]
[1743489972902,45.5245422,126.62,126.6,24.62210399]
[1743489973105,37.4332422,126.61,126.6,24.62210399]
[1743489973302,37.4332422,126.61,126.59,49.24420799]
[1743489973507,37.4332422,126.6,126.59,49.24420799]
[1743489973704,37.4332422,126.6,126.55,0.063]
[1743489974019,7.48664844,126.56,126.55,0.063]
[1743489977542,15.38794844,126.56,126.55,0.063]
[1743489982334,45.3345422,126.56,126.55,0.063]
[1743489982510,15.38794844,126.56,126.55,0.063]
[1743489983009,45.3345422,126.56,126.55,0.063]
[1743489983208,35.14134844,126.56,126.53,0.063]
[1743489983510,7.48664844,126.54,126.53,0.063]
[1743489983912,37.4332422,126.54,126.53,0.063]
[1743489985039,45.3358422,126.54,126.53,0.063]
[1743489985443,45.3358422,126.54,126.49,0.20516157]
[1743489985619,7.9026,126.54,126.49,0.34732314]
[1743489985815,102.00282203,126.57,126.51,0.14216157]
[1743489986013,7.48664844,126.55,126.51,0.14216157]
[1743489986336,7.48664844,126.54,126.51,0.14216157]
[1743489988615,7.48664844,126.52,126.5,0.063]
[1743489989336,7.9026,126.54,126.5,0.063]
[1743489989337,7.48664844,126.51,126.5,0.063]
[1743489989830,96.0674,126.55,126.5,0.063]
[1743489989831,7.48664844,126.53,126.51,0.063]
[1743489990945,7.48664844,126.52,126.51,0.063]
[1743489996032,15.39044844,126.52,126.51,0.063]
[1743490002032,7.51664844,126.53,126.49,8.25292314]
[1743490002341,7.48664844,126.52,126.49,0.34732314]
[1743490004742,15.39054844,126.52,126.49,0.20516157]
[1743490004945,7.48664844,126.51,126.49,0.20516157]
[1743490005156,15.39114844,126.51,126.49,0.063]
[1743490005340,7.48664844,126.5,126.49,0.063]
[1743490007032,15.39174844,126.5,126.49,0.063]
[1743490007230,15.39174844,126.5,126.47,0.14216157]
[1743490007456,7.48664844,126.49,126.47,0.14216157]
[1743490009829,15.39254844,126.49,126.46,0.14216157]
[1743490011157,7.48664844,126.49,126.46,0.14216157]
[1743490012954,7.48664844,126.49,126.46,0.28432314]
[1743490013857,7.48664844,126.49,126.46,0.34732314]
[1743490014760,7.48664844,126.47,126.46,0.063]
[1743490016252,15.39364844,126.47,126.46,0.063]
[1743490017759,15.39364844,126.47,126.45,0.063]
[1743490017955,7.48664844,126.46,126.45,0.063]
[1743490019663,15.39424844,126.46,126.45,0.063]
[1743490021969,15.39424844,126.46,126.41,0.20516157]
[1743490022153,7.48664844,126.42,126.41,0.063]
[1743490023665,15.39674844,126.42,126.41,0.063]
[1743490023963,45.3433422,126.42,126.41,0.063]
[1743490027362,20.0,126.39,126.38,0.063]
[1743490027566,35.39864844,126.39,126.38,0.063]
[1743490028865,27.48664844,126.39,126.38,0.063]
[1743490029066,7.48664844,126.39,126.38,0.063]
[1743490029663,12.40162203,126.41,126.38,0.12210256]
[1743490029853,7.48664844,126.4,126.38,0.12210256]
[1743490030861,7.48664844,126.39,126.38,0.12210256]
[1743490032655,7.48664844,126.39,126.37,7.763]
[1743490032656,15.39884844,126.39,126.37,7.763]
[1743490032863,7.48664844,126.38,126.37,7.90516157]
[1743490033062,7.48664844,126.38,126.37,0.063]
[1743490035173,7.48664844,126.39,126.37,0.063]
[1743490037066,7.48664844,126.4,126.37,0.063]
[1743490043485,7.48664844,126.39,126.37,0.063]
[1743490044382,7.48664844,126.4,126.37,0.063]
[1743490046379,7.48664844,126.4,126.38,0.14216157]
[1743490046571,7.48664844,126.41,126.38,0.14216157]
[1743490046770,7.48664844,126.41,126.39,7.6]
[1743490048389,7.9097,126.43,126.4,0.14216157]
[1743490048600,7.9379,126.46,126.42,0.14216157]
[1743490048890,15.42454844,126.46,126.42,0.14216157]
[1743490049783,0.03,126.46,126.42,0.28432314]
[1743490050183,0.03,126.46,126.44,0.14216157]
[1743490050486,0.03,126.46,126.45,0.14216157]
[1743490052093,0.03,126.46,126.45,8.19252314]
[1743490052313,0.03,126.46,126.45,28.19252314]
[1743490053474,0.03,126.46,126.45,0.28432314]
[1743490055406,0.03,126.46,126.44,7.58]
[1743490055697,7.51664844,126.46,126.44,7.58]
[1743490056101,7.48664844,126.45,126.43,7.54]
[1743490056592,7.48664844,126.45,126.42,0.28432314]
[1743490056808,7.48664844,126.45,126.42,7.82432314]
[1743490057995,15.39494844,126.45,126.42,7.82432314]
[1743490058989,7.48664844,126.45,126.42,7.82432314]
[1743490059895,15.42454844,126.46,126.42,7.82432314]
[1743490061091,7.51664844,126.46,126.42,15.73442314]
[1743490061871,0.03,126.46,126.42,15.73442314]
[1743490064278,0.03,126.46,126.44,0.14216157]
[1743490067783,0.03,126.46,126.45,0.14216157]
[1743490069201,7.51664844,126.46,126.45,0.14216157]
[1743490070404,0.03,126.46,126.45,0.14216157]
[1743490070601,0.03,126.46,126.45,38.933972]
[1743490070902,0.03,126.46,126.45,46.842172]
[1743490073316,0.03,126.46,126.45,53.273672]
[1743490073517,0.03,126.46,126.45,54.831072]
[1743490080408,0.03,126.52,126.5,0.28432314]
[1743490080610,0.03,126.52,126.51,7.66432314]
[1743490081910,0.03,126.52,126.51,46.313972]
[1743490082625,0.03,126.52,126.51,54.218472]
[1743490086839,0.03,126.52,126.51,46.313972]
[1743490087441,0.03,126.52,126.51,54.218472]
[1743490088146,0.03,126.52,126.51,54.178472]
[1743490115665,0.03,126.53,126.51,54.178472]
[1743490115666,0.03,126.53,126.52,18.933972]
[1743490115961,0.03,126.59,126.58,18.933972]
[1743490116164,0.03,126.59,126.58,26.193972]
[1743490117173,0.03,126.59,126.58,34.094072]
[1743490120567,0.03,126.59,126.58,7.54432314]
[1743490122673,7.51664844,126.59,126.58,7.54432314]
[1743490122873,7.51664844,126.59,126.58,7.40216157]
[1743490123470,15.41614844,126.59,126.56,0.28432314]
[1743490123657,7.48664844,126.57,126.56,0.14216157]
[1743490125377,7.48664844,126.58,126.56,0.14216157]
[1743490125561,15.38724844,126.58,126.56,0.14216157]
[1743490125769,7.48664844,126.57,126.56,0.14216157]
[1743490126079,15.38724844,126.58,126.56,0.14216157]
[1743490128378,7.48664844,126.57,126.54,7.32]
[1743490128572,7.48664844,126.56,126.54,7.32]
[1743490128874,7.48664844,126.56,126.52,7.60432314]
[1743490129075,7.48664844,126.55,126.52,7.60432314]
[1743490129572,7.48664844,126.56,126.52,7.60432314]
[1743490129979,7.9006,126.58,126.52,7.60432314]
[1743490130280,7.48664844,126.56,126.52,7.60432314]
[1743490130575,15.38804844,126.56,126.52,7.60432314]
[1743490132173,15.38804844,126.56,126.52,15.50812314]
[1743490133661,15.38804844,126.56,126.52,7.66732314]
[1743490134569,15.38804844,126.56,126.52,7.62732314]
[1743490135477,15.38804844,126.56,126.52,15.53112314]
[1743490135677,7.48664844,126.56,126.52,15.53112314]
[1743490137184,7.51664844,126.57,126.52,15.53112314]
[1743490137487,0.03,126.57,126.54,0.14216157]
[1743490137868,0.03,126.57,126.55,0.14216157]
[1743490140404,0.03,126.57,126.56,0.14216157]
[1743490140682,0.03,126.57,126.56,20.28432314]
[1743490140874,0.03,126.57,126.56,38.933972]
[1743490141073,0.03,126.57,126.56,46.835272]
[1743490148908,0.03,126.57,126.56,70.595272]
[1743490149205,0.03,126.57,126.56,46.835272]
[1743490149788,0.03,126.57,126.56,48.413672]
[1743490153304,0.03,126.57,126.56,54.095272]
[1743490155813,0.03,126.57,126.56,46.835272]
[1743490155986,0.03,126.57,126.56,54.135272]
[1743490156188,0.03,126.57,126.56,46.835272]
[1743490156388,0.03,126.57,126.56,54.115272]
[1743490161405,0.03,126.57,126.56,27.56432314]
[1743490162617,0.03,126.57,126.56,7.56432314]
[1743490163711,0.03,126.57,126.56,0.28432314]
[1743490163906,0.03,126.57,126.56,7.58432314]
[1743490165116,0.03,126.57,126.56,27.58432314]
[1743490165512,0.03,126.57,126.56,35.48562314]
[1743490166618,0.03,126.57,126.56,54.135272]
[1743490169498,0.03,126.59,126.58,20.28432314]
[1743490169698,0.03,126.59,126.58,38.933972]
[1743490170834,0.03,126.59,126.58,46.834072]
[1743490179841,0.0001,126.59,126.58,46.834072]
[1743490181210,0.0001,126.59,126.58,54.054072]
[1743490181929,0.0001,126.59,126.58,46.834072]
[1743490182131,0.0001,126.59,126.58,54.054072]
[1743490183214,0.0001,126.59,126.58,54.034072]
[1743490185109,0.0001,126.59,126.58,159.494072]
[1743490185616,0.03,126.65,126.64,20.28432314]
[1743490185927,0.03,126.65,126.64,46.133972]
[1743490195138,0.03,126.65,126.64,54.030272]
[1743490198748,0.03,126.65,126.64,46.133972]
[1743490199639,0.03,126.65,126.64,54.030272]
[1743490200241,7.51664844,126.65,126.64,27.48432314]
[1743490200939,7.51664844,126.65,126.64,20.28432314]
[1743490202344,0.03,126.65,126.64,46.830272]
[1743490203819,0.03,126.65,126.64,38.933972]
[1743490204231,0.03,126.65,126.64,46.830272]
[1743490205551,7.51664844,126.65,126.64,20.28432314]
[1743490206946,0.03,126.65,126.64,20.28432314]
[1743490207248,0.03,126.65,126.64,46.830272]
[1743490210464,7.51664844,126.65,126.64,20.28432314]